Cogmind - Beta 14 @@@ ROGUE MODE // 2024.09.27 @ 04:05:11 Player: feudal wulf Result: Self-destructed Performance ------------- Evolutions (1) 500 Regions Visited (2) 400 Robots Destroyed (22) 110 Value Destroyed (656) 656 Prototype IDs (1) 20 Alien Tech Used (0) 0 Bonus (0) 0 TOTAL SCORE: 1686 Bonus ------- None Cogmind --------- Core Integrity 181/400 Matter 300/300 Energy 250/250 System Corruption 2% Temperature Cool (0) Movement Hovering (126) Ox1 Location -9/Materials Parts ------- > --- POWER (1) -------- Ion Engine > --- PROPULSION (4) --- Aluminum Leg Hover Unit Hover Unit > --- UTILITY (2) ------ Medium Storage Unit Weight Redist. System > --- WEAPON (2) ------- Improved Medium Laser Improved Medium Laser > --- INVENTORY (10) --- Ion Engine Improved Ion Engine Aluminum Leg Signal Interpreter ECM Suite EM Pulse Gun Beam Rifle Grenade Launcher Peak State ------------ > --- POWER ------------ Ion Engine > --- PROPULSION ------- Aluminum Leg Aluminum Leg Aluminum Leg Aluminum Leg > --- UTILITY ---------- Medium Storage Unit Weight Redist. System > --- WEAPON ----------- Improved Medium Laser Improved Medium Laser > --- INVENTORY -------- Light Ion Engine Signal Interpreter ECM Suite EM Pulse Gun Medium Laser Beam Rifle Improved Medium Laser Grenade Launcher [Rating: 15] Favorites ----------- Power Ion Engine Engine Ion Engine Propulsion Aluminum Leg Leg Aluminum Leg Wheel Wheel Hover Unit Hover Unit Utility Medium Storage Unit Device Weight Redist. System Storage Medium Storage Unit Weapon Medium Laser Energy Gun Medium Laser Build | -11 -10 -9 ------- Run | Yrd Mat Mat Slots Evolved 2 | . . 2 Power . | . . . Propulsion 2 | . . 2 Utility . | . . . Weapon . | . . . Parts Attached 30 | 6 9 15 Power 4 | 1 1 2 Engine 4 | 1 1 2 Core . | . . . Reactor . | . . . Propulsion 15 | 2 5 8 Treads . | . . . Leg 8 | . 5 3 Wheel 2 | 2 . . Hover 5 | . . 5 Flight . | . . . Utility 3 | 1 2 . Device 1 | . 1 . Storage 2 | 1 1 . Processor . | . . . Hackware . | . . . Protection . | . . . Artifact . | . . . Weapon 8 | 2 1 5 Energy Gun 8 | 2 1 5 Energy Cannon . | . . . Ballistic Gun . | . . . Ballistic Cannon . | . . . Launcher . | . . . Special Weapon . | . . . Impact Weapon . | . . . Slashing Weapon . | . . . Piercing Weapon . | . . . Special Melee Weapon . | . . . Unidentified Prototypes 1 | . . 1 Parts Lost 9 | . 2 7 Power 3 | . 1 2 Propulsion 6 | . 1 5 Utility . | . . . Weapon . | . . . Highest Loss Streak 5 | . 1 5 To Critical Strikes . | . . . Average Slot Usage (%) 94 | . 95 94 Engine 12 | . 13 9 Leg 25 | . 25 25 Wheel 1 | . 2 . Hover 6 | . . 13 Device 10 | . 10 11 Storage 12 | . 14 11 Energy Gun 25 | . 28 21 Peak Build Rating 15 | 6 10 15 Average Rating 10 | 3 8 12 On Entrance 5 | . 6 9 Naked Turns . | . . . Heaviest Build 21 | 13 20 21 Greatest Support 46 | 20 26 46 Greatest Overweight (x) 6 | . 1 6 Average Overweight (x) . | . . . Largest Inventory Capacity 10 | 8 10 10 Average Capacity 9 | 6 9 10 Most Carried 10 | 5 9 10 Average Carried 7 | 3 7 8 Final Capacity 10 | 8 10 10 Final Carried 8 | 4 8 8 Class Distribution -------------------- 100% | Mutant Dominant Class ---------------- Mutant | -10/Materials Mutant | -9/Materials Resources | -11 -10 -9 ----------- Run | Yrd Mat Mat Matter Collected 524 | 230 115 179 Remotely . | . . . Salvage Created 754 | . 305 449 Parts 35 | . 16 19 Haulers Intercepted . | . . . Recyclers Shooed . | . . . Parts Field Recycled . | . . . Retrieved Matter . | . . . Parts Self-Destructed . | . . . Prevented . | . . . Kills | -11 -10 -9 ------- Run | Yrd Mat Mat Combat Hostiles Destroyed 21 | . 11 10 Guns 19 | . 10 9 Classes Destroyed 4 | . 2 2 Worker 1 | . . 1 Swarmer 5 | . 5 . Grunt 14 | . 6 8 Sentry 2 | . . 2 Best Kill Streak 5 | . 5 3 Combat Bots Only 5 | . 5 3 Max Kills in Single Turn 1 | . 1 1 Gunslinging . | . . . Exploded . | . . . Melee . | . . . Uniques/NPCs Destroyed . | . . . Combat | -11 -10 -9 -------- Run | Yrd Mat Mat Hostile Shots Fired 138 | . 51 87 Missed 37 | . 11 26 Damage Taken 1260 | . 402 858 Core 293 | . 74 219 Absorbed by Shields . | . . . Core Remaining (%) 85 | 100 70 . Volleys Fired 71 | . 33 38 Largest 2 | . 2 2 Hottest 112 | . 106 112 Shots Fired 125 | . 66 59 Gun 125 | . 66 59 Cannon . | . . . Launcher . | . . . Special . | . . . Kinetic . | . . . Thermal 125 | . 66 59 Explosive . | . . . Electromagnetic . | . . . Robot Hit Streak 14 | . 7 14 Robot Miss Streak 5 | . 5 1 Penetration Max . | . . . Secondary Targets 1 | . . 1 Max Gunslinging Chain 1 | . . 1 Shots Hit Robots 87 | . 39 48 Core Hits 36 | . 17 19 Critical Kills . | . . . Critical Parts Destroyed . | . . . Critical Strikes 5 | . 3 2 Burn 5 | . 3 2 Melee Attacks . | . . . Impact . | . . . Slashing . | . . . Piercing . | . . . Sneak Attacks . | . . . Combat Hostiles . | . . . Follow-up Attacks . | . . . Damage Inflicted 1178 | . 503 675 Guns 1178 | . 503 675 Cannons . | . . . Explosions . | . . . Melee . | . . . Ramming . | . . . Kinetic . | . . . Thermal 1178 | . 503 675 Explosive . | . . . Electromagnetic . | . . . Impact . | . . . Slashing . | . . . Piercing . | . . . Highest Corruption 2 | . . 2 Average Corruption 2 | . . 2 Corruption Purged . | . . . Corruption Blocked . | . . . Overload Shots . | . . . Overflow Damage . | . . . Projectiles . | . . . Explosions . | . . . Melee . | . . . Knockbacks . | . . . Impact . | . . . Kinetic . | . . . Secondary . | . . . Self-Inflicted Damage . | . . . Shots . | . . . Rammed . | . . . Targets Rammed . | . . . Kicked . | . . . Crushed . | . . . Highest Temperature 605 | . 605 548 Average Temperature 200 | . 192 210 Received Heat Transfer 561 | . 132 429 Effects 15 | . 5 10 Shutdowns 4 | . 2 2 Energy Bleed 1 | . . 1 Interference 3 | . 2 1 Matter Decay 2 | . . 2 Short Circuit 1 | . . 1 Damage (major) 4 | . 1 3 Siege Activations . | . . . Robots Corrupted . | . . . Combat Hostiles . | . . . Parts Fried . | . . . Impact Corruptions . | . . . Robots Melted 2 | . 1 1 Combat Hostiles 2 | . 1 1 Parts Melted 6 | . 4 2 Heat Transferred 3481 | . 1557 1924 Parts Sabotaged . | . . . Parts Stolen . | . . . Parts Stripped . | . . . Power Chain Reactions . | . . . Alert | -11 -10 -9 ------- Run | Yrd Mat Mat Peak Influence 235 | . 225 235 Initial 48 | . . 48 Average 97 | . 99 102 Maximum Alert Level 1 | . 1 1 Low Security (%) 87 | 100 84 91 Level 1 12 | . 15 8 Level 2 . | . . . Level 3 . | . . . Level 4 . | . . . Level 5 . | . . . High Security . | . . . Max Security . | . . . Squads Dispatched 4 | . 2 2 Investigation 1 | . 1 . Extermination . | . . . Reinforcement 3 | . 1 2 Assault . | . . . Garrison . | . . . Intercept . | . . . Searches Triggered . | . . . Construction Impeded . | . . . Haulers Reinforced . | . . . Active Scanning Responses . | . . . Cargo Convoy Interrupts . | . . . Stealth | -11 -10 -9 --------- Run | Yrd Mat Mat Distress Signals 4 | . 2 2 Communications Jammed . | . . . Distress Signals . | . . . Times Spotted 42 | . 18 24 Peak Tracking Total 7 | . 6 7 Tactical Retreats 2 | . 1 1 Traps | -11 -10 -9 ------- Run | Yrd Mat Mat Traps Triggered 2 | . 1 1 Indirectly . | . . . Trap Hack Attempts . | . . . Triggered . | . . . Disarmed 4 | . 4 . Reprogrammed . | . . . Reused . | . . . Traps Extracted . | . . . Installed . | . . . Triggered . | . . . Machines | -11 -10 -9 ---------- Run | Yrd Mat Mat Machines Disabled . | . . . Max in Single Turn . | . . . Machines Repaired . | . . . Machines Dismantled . | . . . Machines Sabotaged . | . . . Overloaded Fab Kills . | . . . Hacking | -11 -10 -9 --------- Run | Yrd Mat Mat Machines Accessed 4 | . 3 1 Terminals 4 | . 3 1 Fabricators . | . . . Repair Stations . | . . . Recycling Units . | . . . Scanalyzers . | . . . Garrison Access . | . . . Total Hacks 8 | . 6 2 Successful 3 | . 2 1 Failed 5 | . 4 1 Catastrophic . | . . . Database Lockouts . | . . . Manual . | . . . Terminals 8 | . 6 2 Fabricators . | . . . Repair Stations . | . . . Recycling Units . | . . . Scanalyzers . | . . . Garrison Access . | . . . Terminal Hacks 3 | . 2 1 Unreport Threat 1 | . . 1 Disarm Traps 1 | . 1 . Investigation Status 1 | . 1 . Fabricator Hacks . | . . . Repair Station Hacks . | . . . Recycling Unit Hacks . | . . . Scanalyzer . | . . . Garrison Access Hacks . | . . . Unauthorized Hacks . | . . . Terminals . | . . . Fabricators . | . . . Repair Stations . | . . . Recycling Units . | . . . Scanalyzers . | . . . Garrison Access . | . . . Data Cores Recovered . | . . . Used . | . . . Hacking Detections 4 | . 3 1 Full Trace Events . | . . . Feedback Events . | . . . Feedback Blocked . | . . . Robot Schematics Acquired . | . . . Robots Built . | . . . Authchips . | . . . Time . | . . . Total Robot Build Rating . | . . . Part Schematics Acquired . | . . . Parts Built . | . . . Authchips . | . . . Time . | . . . Total Part Build Rating . | . . . Parts Repaired . | . . . Time . | . . . Parts Recycled . | . . . Recycled Matter . | . . . Retrieved Matter . | . . . Retrieved Components . | . . . Parts Scanalyzed . | . . . Part Schematics Acquired . | . . . Parts Damaged . | . . . Bothacking | -11 -10 -9 ------------ Run | Yrd Mat Mat Used RIF Installer . | . . . Robots Hacked . | . . . Non-combat . | . . . Combat . | . . . Robot Hacks Applied . | . . . Relay Couplers Released . | . . . Fabnet Peak Effective % . | . . . Robots Rewired . | . . . Allies Hacked . | . . . Hacks Repelled . | . . . Allies | -11 -10 -9 -------- Run | Yrd Mat Mat Total Allies . | . . . Largest Group . | . . . Highest-Rated Group . | . . . Highest-Rated Ally . | . . . Total Orders . | . . . Ally Attacks . | . . . Total Damage . | . . . Kills . | . . . Allies Corrupted . | . . . Allies Melted . | . . . Intel | -11 -10 -9 ------- Run | Yrd Mat Mat Robot Analysis Total . | . . . Derelict Logs Recovered . | . . . Drone Launches . | . . . Drone Recoveries . | . . . Exploration | -11 -10 -9 ------------- Run | Yrd Mat Mat Turns Passed 1338 | 47 702 589 Spaces Moved 951 | 43 476 432 Core 9 | 3 . 6 Treads . | . . . Legs 562 | . 425 137 Wheels 91 | 40 51 . Hover 289 | . . 289 Flight . | . . . Fastest Speed 50 | 50 80 62 Average Speed 105 | 77 115 96 Slowest Speed 350 | 80 190 350 Overloaded Moves . | . . . Propulsion Burnouts . | . . . Robots Hopped . | . . . Cave-ins Triggered . | . . . Exploration Rate (%) 42 | 5 80 43 Regions Visited 2 Branch Regions . Pre-discovered Areas . | . . . Known Exits Taken . | . . . Unknown Exits Taken 2 | 1 1 . Scrap Searched . | . . . Spaces Dug . | . . . Terrain Destroyed . | . . . Melee . | . . . Projectile . | . . . AOE . | . . . Terrain Rammed . | . . . Walls Destroyed . | . . . Machines Disabled . | . . . Actions | -11 -10 -9 --------- Run | Yrd Mat Mat Total 1162 | 54 559 549 Wait 77 | . 31 46 Move 949 | 42 475 432 Hop . | . . . Pick Up 24 | 6 7 11 Fast Attach 11 | 4 4 3 Attach 15 | 2 3 10 Detach . | . . . Swap 4 | . 2 2 Drop 11 | . 4 7 Fire 71 | . 33 38 Melee . | . . . Ram . | . . . Kick . | . . . Crush . | . . . Escape Stasis . | . . . Rewire . | . . . Trap . | . . . Miscellaneous . | . . . Route ------- -11/Scrapyard -10/Materials (discovered 4 exits: *Mat x2 / [*Min x2]) -9/Materials (discovered 1 exit: [*Min]) History --------- Turn | Location | Event 10 | -11/Scrapyard | Discovered new exit (range 15) 48 | -11/Scrapyard | Entered Materials 209 | -10/Materials | Discovered new exit (range 16) 302 | -10/Materials | Build established: Mutant 384 | -10/Materials | Discovered new exit (range 15) 596 | -10/Materials | Discovered new exit (range 15) 688 | -10/Materials | Discovered new exit (range 13) 750 | -10/Materials | Entered another Materials area 750 | -9/Materials | Evolved 2 slots: Propulsion x2 874 | -9/Materials | Discovered new exit (range 15) 1193 | -9/Materials | Lost 5 parts (1p4n) 1328 | -9/Materials | Core integrity fell below 50% 1339 | -9/Materials | Self-destructed Last Messages --------------- Dropped Broken Imp. Medium Laser. Dropped Med. Laser. Acquired 30 matter. K-01 Serf cleans the Processing Tank. Processing Tank disabled. Hover Unit destroyed. Critical hit (Burn: +37). K-01 Serf cleans the Processing Tank. K-01 Serf destroyed. U-05 Engineer builds a Door. O-16 Technician: "IFF HANDSHAKE FAILED. SECURING TERMINAL." K-01 Serf cleans the Nuclear Reactor. ALERT: Hostiles spotted, dispatching reinforcements to Terminal M008. W-16 Scout sends out distress signal. K-01 Serf cleans the Nuclear Reactor. Triggered Shock Trap. The floor emits a surge of raw power. System corrupted (+2). Map ----- +----------------------------------------------------+ | ????????????????????????????????????# ?????????? | | ?????????????????????????????????#+## #????????? | | ?????????????????????????????????# #????????? | | ????????????????? ?????????????# #????????? | | ????????????????? ?????????????# #????????? | | ????????????????? ????????????## ####?????? | | ????????????????? ???????????## #?????? | | ?????????????????# #??????????+ ####### | | ?????????????????# #???????????# "" # | | ?????????????????# #???????????# "" # """ " | | ?????????????????# ##+#???????## T" # """ " | | ?????????????????# #???????#" "" # """ " | | ?????????????????# #???????#T "" + | | ?????????????????# ????????#" # | | ?????????????????# ########## # | | ?????????????????# = # | | ?????????????????# #####+#####+## | | ?????????????????# ############# # %* # #? | | ??????? T ### # #?# # """ """ # #? | | ??????# / + w ^ #?# # """ """ # #? | | ??????# ######g ^ g ### # """ """ + #? | | ????????????????????# g""" /t # """ """ # #? | | ????????????????????# ]]||""" ### # "" """ # #? | | ????????????????????# ]| """ #?# # # ## | | ????????????????????# ]|| #?# # # | | ????????????????????# @ #?# ########### | | ????????????????????#####r#####?# #?????????+ | | ???????????????????????? ????? #?????????#### | | ???????????????????????? ???? #????????????# | | ??????????????????????? ??? #????????????# | | ???????????????????????######???+####???????????## | | ????????????????????????????????????????????????# | | ????????????????????????????????????????????????# | | ????????????????????????????????????????????????# | | ????????????????????????????????????????????????# | | ????????????????????????????????????????????????# | | ???????????????????????????????????????????????### | | ???????????????????????????????????????????????# | | ???????????????????????????????????????????????# " | | ???????????????????????????????????????????????#"" | | ???????????????????????????????????????????????#"" | | ???????????????????????????????????????????????#"" | | ???????????????????????????????????????????????? " | | ????????????????????????????????????????????????? | | ?????????????????????????????????????????????????? | | ?????????????????????????????????????????????????? | | ?????????????????????????????????????????????????? | | ?????????????????????????????????????????????????? | | ?????????????????????????????????????????????????? | | ?????????????????????????????????????????????????? | +----------------------------------------------------+ Best States ------------- Heat Dissipation 28 Energy Generation 10 Energy Capacity 250 Matter Stores 300 Matter Capacity 300 Sight Range 16 Terrain Scan Density 10 Additional Mass Support 6 Evasion (%) 55 Item Schematics ----------------- None Robot Schematics ------------------ None Fabricated ------------ Nothing Alien Tech Used ----------------- None Achievements -------------- None Challenges ------------ None Game ------ Seed LauncherDisposableCloak Manual? 0 Play Time 00:17:24 Cumulative 21.6 hours Start 2024.09.27 @ 03:48:28 End 2024.09.27 @ 04:05:11 Sessions 1 Manual Loads 0 Difficulty Rogue Special Mode None Game No. 26 Rogue 26 Adventurer 0 Explorer 0 Win Type - Total 0 Types 0/0/0/0/0/0/0/0/0 Lore% 7 Gallery% 20 Achievement% 19 Wizard Run 0 Options --------- Layout 2 ASCII 0 Keyboard 0 Movement Numpad Keybinds 0 Fullscreen 2 Font 48/Smallcaps Map View 50x44 Zoom Use 0% Tactical HUD 0 Map Filters NONE Filters NONE Steam 1 RUN: c3fbc56c-4e28-4ec5-9168-873cb68628b0